[Event "*** Titled Tuesday Blitz"]
[Site "Chess.com"]
[Date "2021.03.02"]
[Round "4"]
[White "Genghis_K"]
[Black "elextranjero00"]
[Result "1-0"]
[WhiteElo "2924"]
[BlackElo "2648"]
[TimeControl "180+1"]
[EndTime "10:39:54 PST"]
[Termination "Genghis_K won on time"]

1. e4 {[%clk 0:03:00.9]} 1... c6 {[%clk 0:02:56.8]} 2. d4 {[%clk 0:02:53.7]}
2... d5 {[%clk 0:02:56.7]} 3. exd5 {[%clk 0:02:54.3]} 3... cxd5 {[%clk
0:02:56.7]} 4. Bd3 {[%clk 0:02:54.9]} 4... Nc6 {[%clk 0:02:55.7]} 5. c3 {[%clk
0:02:55.4]} 5... g6 {[%clk 0:02:51.9]} 6. Nf3 {[%clk 0:02:53.2]} 6... Nh6 {[%clk
0:02:30]} 7. O-O {[%clk 0:02:53]} 7... Nf5 {[%clk 0:02:29.8]} 8. Bf4 {[%clk
0:02:51.7]} 8... Bg7 {[%clk 0:02:29.4]} 9. Re1 {[%clk 0:02:51]} 9... O-O {[%clk
0:02:29]} 10. Nbd2 {[%clk 0:02:51.6]} 10... Nd6 {[%clk 0:02:16.1]} 11. Ne5
{[%clk 0:02:45.8]} 11... f6 {[%clk 0:02:13.2]} 12. Nxc6 {[%clk 0:02:37.3]} 12...
bxc6 {[%clk 0:02:14.1]} 13. Nb3 {[%clk 0:02:37.6]} 13... Re8 {[%clk 0:02:07.7]}
14. Nc5 {[%clk 0:02:36.7]} 14... e5 {[%clk 0:02:07.5]} 15. Bg3 {[%clk
0:02:37.1]} 15... Bf5 {[%clk 0:01:59.9]} 16. Bf1 {[%clk 0:02:33.5]} 16... Ne4
{[%clk 0:01:46.2]} 17. Nxe4 {[%clk 0:02:31.1]} 17... Bxe4 {[%clk 0:01:46.3]} 18.
Qa4 {[%clk 0:02:29.9]} 18... Qb6 {[%clk 0:01:42.1]} 19. b3 {[%clk 0:02:22.2]}
19... Bf5 {[%clk 0:01:38.1]} 20. Rad1 {[%clk 0:02:21.2]} 20... Rad8 {[%clk
0:01:33]} 21. h3 {[%clk 0:02:18.5]} 21... Bc2 {[%clk 0:01:23.2]} 22. Rd2 {[%clk
0:02:14.7]} 22... Bf5 {[%clk 0:01:23.3]} 23. Kh2 {[%clk 0:02:08.8]} 23... h5
{[%clk 0:01:13.7]} 24. c4 {[%clk 0:01:51.6]} 24... Bh6 {[%clk 0:00:46.6]} 25.
Rdd1 {[%clk 0:01:35.6]} 25... Bc2 {[%clk 0:00:40.5]} 26. c5 {[%clk 0:01:35.7]}
26... Qc7 {[%clk 0:00:37.1]} 27. Ra1 {[%clk 0:01:31.8]} 27... h4 {[%clk
0:00:32.2]} 28. Bxh4 {[%clk 0:01:28.5]} 28... e4+ {[%clk 0:00:25.7]} 29. Bg3
{[%clk 0:01:28.4]} 29... Bf4 {[%clk 0:00:26]} 30. Rac1 {[%clk 0:01:13.5]} 30...
Bd3 {[%clk 0:00:23.5]} 31. Re3 {[%clk 0:01:02.8]} 31... Bxg3+ {[%clk 0:00:17.9]}
32. Rxg3 {[%clk 0:01:01.4]} 32... Bxf1 {[%clk 0:00:16.5]} 33. Rxf1 {[%clk
0:01:02.3]} 33... e3 {[%clk 0:00:12.4]} 34. Qb4 {[%clk 0:00:51.9]} 34... Kf7
{[%clk 0:00:07.2]} 35. Qc3 {[%clk 0:00:47.4]} 35... Qf4 {[%clk 0:00:05.7]} 36.
Kg1 {[%clk 0:00:39.2]} 36... e2 {[%clk 0:00:04.5]} 37. Re1 {[%clk 0:00:39]}
37... Re4 {[%clk 0:00:05.1]} 38. Rf3 {[%clk 0:00:34.3]} 38... Qg5 {[%clk
0:00:05.2]} 39. Re3 {[%clk 0:00:33.6]} 39... Rde8 {[%clk 0:00:01.7]} 40. R1xe2
{[%clk 0:00:33.8]} 40... f5 {[%clk 0:00:02.2]} 41. Rxe4 {[%clk 0:00:28.9]} 41...
fxe4 {[%clk 0:00:02.4]} 42. Qe3 {[%clk 0:00:28.3]} 42... Qf6 {[%clk 0:00:02.7]}
43. f3 {[%clk 0:00:26.2]} 43... Kg7 {[%clk 0:00:02.6]} 44. Rf2 {[%clk
0:00:25.6]} 44... Qd8 {[%clk 0:00:01.3]} 45. f4 {[%clk 0:00:24.8]} 45... Rf8
{[%clk 0:00:01.4]} 46. g4 {[%clk 0:00:22.9]} 46... Qe7 {[%clk 0:00:01.7]} 47.
Kg2 {[%clk 0:00:23.3]} 1-0

[Event "*** Titled Tuesday Blitz"]
[Site "Chess.com"]
[Date "2021.03.02"]
[Round "4"]
[White "Supernotar"]
[Black "exoticprincess"]
[Result "0-1"]
[WhiteElo "2682"]
[BlackElo "2994"]
[TimeControl "180+1"]
[EndTime "10:39:55 PST"]
[Termination "exoticprincess won by checkmate"]

1. d4 {[%clk 0:03:00.9]} 1... Nf6 {[%clk 0:02:59]} 2. c4 {[%clk 0:03:00.9]} 2...
c5 {[%clk 0:02:57.9]} 3. Nf3 {[%clk 0:02:59.5]} 3... e6 {[%clk 0:02:57.8]} 4. g3
{[%clk 0:02:57.3]} 4... b6 {[%clk 0:02:56.3]} 5. Bg2 {[%clk 0:02:57.1]} 5... Bb7
{[%clk 0:02:56.8]} 6. O-O {[%clk 0:02:56.8]} 6... cxd4 {[%clk 0:02:57.2]} 7.
Nxd4 {[%clk 0:02:51.4]} 7... Bxg2 {[%clk 0:02:56.5]} 8. Kxg2 {[%clk 0:02:52.3]}
8... Qc8 {[%clk 0:02:56.5]} 9. b3 {[%clk 0:02:52.1]} 9... Qb7+ {[%clk
0:02:56.1]} 10. Kg1 {[%clk 0:02:48.4]} 10... a6 {[%clk 0:02:56.3]} 11. a4 {[%clk
0:02:47.2]} 11... Be7 {[%clk 0:02:52.1]} 12. Bb2 {[%clk 0:02:46.9]} 12... O-O
{[%clk 0:02:51.7]} 13. Nd2 {[%clk 0:02:44.5]} 13... Nc6 {[%clk 0:02:46.3]} 14.
Rc1 {[%clk 0:02:39.7]} 14... Rfc8 {[%clk 0:02:36.4]} 15. N2f3 {[%clk 0:02:31.7]}
15... h6 {[%clk 0:02:35.7]} 16. e3 {[%clk 0:02:25.3]} 16... Nxd4 {[%clk
0:02:30.8]} 17. Nxd4 {[%clk 0:02:21]} 17... d5 {[%clk 0:02:30.8]} 18. cxd5
{[%clk 0:02:09.1]} 18... Nxd5 {[%clk 0:02:30.7]} 19. Qf3 {[%clk 0:01:59.9]}
19... Bf6 {[%clk 0:02:27.6]} 20. Kg2 {[%clk 0:01:54.2]} 20... b5 {[%clk
0:02:07.4]} 21. axb5 {[%clk 0:01:52.1]} 21... axb5 {[%clk 0:02:08.3]} 22. Rfd1
{[%clk 0:01:23.9]} 22... b4 {[%clk 0:02:02.7]} 23. Rc4 {[%clk 0:01:05.9]} 23...
Ra2 {[%clk 0:01:57]} 24. Rd2 {[%clk 0:00:59.3]} 24... Rca8 {[%clk 0:01:30]} 25.
Rdc2 {[%clk 0:00:56.3]} 25... Qd7 {[%clk 0:01:19.2]} 26. h4 {[%clk 0:00:47.3]}
26... e5 {[%clk 0:01:00.3]} 27. Nf5 {[%clk 0:00:42.9]} 27... Rxb2 {[%clk
0:00:56.7]} 28. Rxb2 {[%clk 0:00:39.2]} 28... e4 {[%clk 0:00:56.9]} 29. Qxe4
{[%clk 0:00:21.6]} 29... Bxb2 {[%clk 0:00:55.1]} 30. Rc5 {[%clk 0:00:21.8]}
30... Nb6 {[%clk 0:00:43.8]} 31. Qg4 {[%clk 0:00:18.7]} 31... Qb7+ {[%clk
0:00:42.4]} 32. e4 {[%clk 0:00:18]} 32... Re8 {[%clk 0:00:37.2]} 33. Nxh6+
{[%clk 0:00:08.7]} 33... Kf8 {[%clk 0:00:37.2]} 34. Nxf7 {[%clk 0:00:05.3]}
34... Kxf7 {[%clk 0:00:26.3]} 35. Rf5+ {[%clk 0:00:04]} 35... Kg8 {[%clk
0:00:23.6]} 36. f3 {[%clk 0:00:03.6]} 36... Qd7 {[%clk 0:00:19.1]} 37. h5 {[%clk
0:00:03.2]} 37... Rf8 {[%clk 0:00:15.6]} 38. Qg6 {[%clk 0:00:02.8]} 38... Rxf5
{[%clk 0:00:14.4]} 39. exf5 {[%clk 0:00:03.7]} 39... Nd5 {[%clk 0:00:12.6]} 40.
h6 {[%clk 0:00:03.7]} 40... Ne3+ {[%clk 0:00:11.2]} 41. Kf2 {[%clk 0:00:02.8]}
41... Qd2+ {[%clk 0:00:10.9]} 42. Kg1 {[%clk 0:00:02.5]} 42... Qg2# {[%clk
0:00:11.8]} 0-1

[Event "*** Titled Tuesday Blitz"]
[Site "Chess.com"]
[Date "2021.03.02"]
[Round "4"]
[White "blitis"]
[Black "Susal_De_Silva"]
[Result "0-1"]
[WhiteElo "2481"]
[BlackElo "2662"]
[TimeControl "180+1"]
[EndTime "10:39:59 PST"]
[Termination "Susal_De_Silva won on time"]

1. e4 {[%clk 0:03:00.9]} 1... e5 {[%clk 0:02:59.9]} 2. Nc3 {[%clk 0:02:59.3]}
2... Nf6 {[%clk 0:02:59.7]} 3. g3 {[%clk 0:02:56.8]} 3... Nc6 {[%clk 0:02:59]}
4. Bg2 {[%clk 0:02:57]} 4... Bc5 {[%clk 0:02:59.1]} 5. Nge2 {[%clk 0:02:57.2]}
5... O-O {[%clk 0:02:59.4]} 6. O-O {[%clk 0:02:57.4]} 6... d6 {[%clk 0:02:59.6]}
7. Na4 {[%clk 0:02:57.3]} 7... Bb6 {[%clk 0:02:59]} 8. Nxb6 {[%clk 0:02:57.3]}
8... axb6 {[%clk 0:02:59.9]} 9. d4 {[%clk 0:02:57.9]} 9... Qe7 {[%clk
0:02:57.8]} 10. Re1 {[%clk 0:02:56]} 10... Bg4 {[%clk 0:02:55.7]} 11. f3 {[%clk
0:02:55]} 11... Bh5 {[%clk 0:02:56]} 12. g4 {[%clk 0:02:51]} 12... Bg6 {[%clk
0:02:55.6]} 13. c4 {[%clk 0:02:49.2]} 13... exd4 {[%clk 0:02:48.8]} 14. Nxd4
{[%clk 0:02:42.4]} 14... Nxd4 {[%clk 0:02:49.7]} 15. Qxd4 {[%clk 0:02:42.8]}
15... h6 {[%clk 0:02:49.8]} 16. Bf4 {[%clk 0:02:22.9]} 16... Nd7 {[%clk
0:02:47.2]} 17. Qd2 {[%clk 0:02:11.9]} 17... Ra7 {[%clk 0:02:39.6]} 18. Rad1
{[%clk 0:01:52.9]} 18... Rxa2 {[%clk 0:02:37]} 19. Bg3 {[%clk 0:01:29.3]} 19...
Qf6 {[%clk 0:02:34.7]} 20. Rb1 {[%clk 0:01:19.7]} 20... Re8 {[%clk 0:02:24.6]}
21. f4 {[%clk 0:01:16.8]} 21... Nc5 {[%clk 0:02:20.8]} 22. f5 {[%clk 0:01:13.7]}
22... Bh7 {[%clk 0:02:21.2]} 23. e5 {[%clk 0:01:03.5]} 23... dxe5 {[%clk
0:02:17.5]} 24. Rxe5 {[%clk 0:01:02.7]} 24... Rd8 {[%clk 0:02:04.8]} 25. Rbe1
{[%clk 0:00:57.2]} 25... Raa8 {[%clk 0:01:33.7]} 26. Qe3 {[%clk 0:00:57.1]}
26... Kh8 {[%clk 0:01:25.4]} 27. Rd5 {[%clk 0:00:38.1]} 27... Rxd5 {[%clk
0:01:02.8]} 28. cxd5 {[%clk 0:00:37.6]} 28... Qxb2 {[%clk 0:00:57.8]} 29. Be5
{[%clk 0:00:33]} 29... Qb4 {[%clk 0:00:53.1]} 30. h3 {[%clk 0:00:15.3]} 30... f6
{[%clk 0:00:40.7]} 31. Bxc7 {[%clk 0:00:13.6]} 31... Bg8 {[%clk 0:00:40.3]} 32.
d6 {[%clk 0:00:13]} 32... Ra3 {[%clk 0:00:39.1]} 33. Qe2 {[%clk 0:00:08.2]}
33... Qd4+ {[%clk 0:00:34.6]} 34. Kh1 {[%clk 0:00:06.9]} 34... Ra2 {[%clk
0:00:32.4]} 35. Qe3 {[%clk 0:00:04.5]} 35... Qb2 {[%clk 0:00:20.7]} 36. Rg1
{[%clk 0:00:03.7]} 36... Qd2 {[%clk 0:00:20.9]} 37. Qxd2 {[%clk 0:00:03.4]}
37... Rxd2 {[%clk 0:00:21.8]} 38. Re1 {[%clk 0:00:02.9]} 38... Kh7 {[%clk
0:00:20.3]} 39. Re8 {[%clk 0:00:02.3]} 39... b5 {[%clk 0:00:18.7]} 40. Kg1
{[%clk 0:00:01.5]} 40... b4 {[%clk 0:00:18.9]} 41. Rb8 {[%clk 0:00:01.7]} 41...
b3 {[%clk 0:00:19]} 42. d7 {[%clk 0:00:02.1]} 42... Rxd7 {[%clk 0:00:16.8]} 43.
Bf4 {[%clk 0:00:01.8]} 43... b2 {[%clk 0:00:16.8]} 0-1

[Event "*** Titled Tuesday Blitz"]
[Site "Chess.com"]
[Date "2021.03.02"]
[Round "4"]
[White "Margency"]
[Black "ehrenfeld"]
[Result "1-0"]
[WhiteElo "2691"]
[BlackElo "2505"]
[TimeControl "180+1"]
[EndTime "10:40:00 PST"]
[Termination "Margency won by resignation"]

1. e4 {[%clk 0:03:00.9]} 1... e5 {[%clk 0:02:59.6]} 2. Nf3 {[%clk 0:03:00.8]}
2... Nc6 {[%clk 0:02:59.6]} 3. Bc4 {[%clk 0:03:00.9]} 3... Nf6 {[%clk
0:02:59.1]} 4. d3 {[%clk 0:03:01]} 4... Bc5 {[%clk 0:02:57.9]} 5. O-O {[%clk
0:02:59.9]} 5... d6 {[%clk 0:02:57.7]} 6. c3 {[%clk 0:02:59.9]} 6... a6 {[%clk
0:02:57.5]} 7. a4 {[%clk 0:02:59.9]} 7... Ba7 {[%clk 0:02:57.1]} 8. Na3 {[%clk
0:02:56]} 8... h6 {[%clk 0:02:52.9]} 9. Nc2 {[%clk 0:02:55.8]} 9... O-O {[%clk
0:02:52.1]} 10. Be3 {[%clk 0:02:55.5]} 10... Be6 {[%clk 0:02:49.8]} 11. Bxa7
{[%clk 0:02:51]} 11... Rxa7 {[%clk 0:02:44]} 12. Re1 {[%clk 0:02:48.2]} 12...
Ra8 {[%clk 0:02:42]} 13. b4 {[%clk 0:02:42.2]} 13... Qd7 {[%clk 0:02:40]} 14.
Ne3 {[%clk 0:02:37.5]} 14... Bxc4 {[%clk 0:02:29]} 15. Nxc4 {[%clk 0:02:32.7]}
15... b5 {[%clk 0:02:16.2]} 16. Ne3 {[%clk 0:02:28]} 16... Ne7 {[%clk
0:02:13.3]} 17. d4 {[%clk 0:02:08.7]} 17... Nxe4 {[%clk 0:02:06.5]} 18. Qd3
{[%clk 0:02:08.4]} 18... Ng5 {[%clk 0:01:46.7]} 19. Nxg5 {[%clk 0:02:04.9]}
19... hxg5 {[%clk 0:01:46.1]} 20. dxe5 {[%clk 0:02:05.3]} 20... d5 {[%clk
0:01:44.2]} 21. Nc2 {[%clk 0:01:25.2]} 21... Qf5 {[%clk 0:01:32.2]} 22. Qxf5
{[%clk 0:01:16.5]} 22... Nxf5 {[%clk 0:01:31.5]} 23. Nd4 {[%clk 0:01:16.9]}
23... Nxd4 {[%clk 0:01:29.6]} 24. cxd4 {[%clk 0:01:17.7]} 24... bxa4 {[%clk
0:01:17.6]} 25. Rxa4 {[%clk 0:01:17.2]} 25... Rfb8 {[%clk 0:01:17]} 26. Rc1
{[%clk 0:01:16.8]} 26... Rb5 {[%clk 0:01:02.5]} 27. h3 {[%clk 0:00:46.3]} 27...
Ra7 {[%clk 0:01:00.9]} 28. Rc5 {[%clk 0:00:44]} 28... Rxc5 {[%clk 0:00:54.3]}
29. dxc5 {[%clk 0:00:41.5]} 29... Rb7 {[%clk 0:00:43.4]} 30. Kf1 {[%clk
0:00:38.8]} 30... Kf8 {[%clk 0:00:40.7]} 31. Ke2 {[%clk 0:00:39]} 31... Ke7
{[%clk 0:00:40.7]} 32. Kd3 {[%clk 0:00:39.3]} 32... Kd7 {[%clk 0:00:40.1]} 33.
Kd4 {[%clk 0:00:36]} 33... c6 {[%clk 0:00:38.7]} 34. Kc3 {[%clk 0:00:35.7]}
34... Rb8 {[%clk 0:00:38.7]} 35. Rxa6 {[%clk 0:00:35.5]} 35... Rb7 {[%clk
0:00:30.8]} 36. g3 {[%clk 0:00:33.1]} 36... Rb8 {[%clk 0:00:29.3]} 37. Ra7+
{[%clk 0:00:26]} 37... Ke6 {[%clk 0:00:28.9]} 38. Rc7 {[%clk 0:00:26.1]} 38...
Kxe5 {[%clk 0:00:24.7]} 39. Rxc6 {[%clk 0:00:26.2]} 39... Ra8 {[%clk 0:00:21.8]}
40. b5 {[%clk 0:00:25.2]} 40... Ra3+ {[%clk 0:00:15.3]} 41. Kb2 {[%clk
0:00:24.4]} 41... Ra4 {[%clk 0:00:14.6]} 42. b6 {[%clk 0:00:23]} 42... Kd4
{[%clk 0:00:13.6]} 43. Kb3 {[%clk 0:00:21.8]} 43... Ra1 {[%clk 0:00:13]} 44. Rc7
{[%clk 0:00:20.6]} 44... Rb1+ {[%clk 0:00:12.7]} 45. Kc2 {[%clk 0:00:20.9]}
45... Rb5 {[%clk 0:00:12]} 46. b7 {[%clk 0:00:20.8]} 46... Kc4 {[%clk
0:00:10.9]} 47. c6 {[%clk 0:00:20.7]} 47... d4 {[%clk 0:00:11]} 48. Rd7 {[%clk
0:00:20.6]} 1-0

[Event "*** Titled Tuesday Blitz"]
[Site "Chess.com"]
[Date "2021.03.02"]
[Round "4"]
[White "kobemagic"]
[Black "frazier69"]
[Result "1-0"]
[WhiteElo "2414"]
[BlackElo "2560"]
[TimeControl "180+1"]
[EndTime "10:40:02 PST"]
[Termination "kobemagic won on time"]

1. c4 {[%clk 0:03:00.9]} 1... e6 {[%clk 0:02:54.6]} 2. g3 {[%clk 0:03:01.8]}
2... d5 {[%clk 0:02:52.9]} 3. Bg2 {[%clk 0:03:01]} 3... Nf6 {[%clk 0:02:52.3]}
4. Nf3 {[%clk 0:03:01.4]} 4... Be7 {[%clk 0:02:51.5]} 5. O-O {[%clk 0:03:01.8]}
5... O-O {[%clk 0:02:51]} 6. b3 {[%clk 0:03:02.3]} 6... a5 {[%clk 0:02:47.4]} 7.
d4 {[%clk 0:03:02.6]} 7... a4 {[%clk 0:02:45.8]} 8. Bb2 {[%clk 0:03:01.5]} 8...
c6 {[%clk 0:02:41.2]} 9. Ne5 {[%clk 0:02:55.5]} 9... Nbd7 {[%clk 0:02:38.9]} 10.
Nd2 {[%clk 0:02:54.1]} 10... Nxe5 {[%clk 0:02:33.1]} 11. dxe5 {[%clk 0:02:53.1]}
11... Nd7 {[%clk 0:02:33.7]} 12. cxd5 {[%clk 0:02:52.2]} 12... cxd5 {[%clk
0:02:33.2]} 13. e4 {[%clk 0:02:52.8]} 13... Qa5 {[%clk 0:01:50.4]} 14. exd5
{[%clk 0:02:49.7]} 14... exd5 {[%clk 0:01:49.8]} 15. e6 {[%clk 0:02:48.5]} 15...
fxe6 {[%clk 0:01:43.7]} 16. Re1 {[%clk 0:02:42.7]} 16... Bf6 {[%clk 0:01:33.9]}
17. Bxf6 {[%clk 0:02:38.2]} 17... Nxf6 {[%clk 0:01:34.8]} 18. Nf3 {[%clk
0:02:35.8]} 18... Bd7 {[%clk 0:01:29.5]} 19. Ne5 {[%clk 0:02:34.7]} 19... Be8
{[%clk 0:01:25.8]} 20. Nd3 {[%clk 0:02:32.5]} 20... axb3 {[%clk 0:01:20.3]} 21.
axb3 {[%clk 0:02:28.4]} 21... Qxa1 {[%clk 0:01:19.6]} 22. Qxa1 {[%clk
0:02:29.3]} 22... Rxa1 {[%clk 0:01:19.6]} 23. Rxa1 {[%clk 0:02:30.2]} 23... Bd7
{[%clk 0:01:04.3]} 24. Ra7 {[%clk 0:02:20.2]} 24... Rb8 {[%clk 0:01:02.2]} 25.
Nc5 {[%clk 0:02:12.9]} 25... Bc8 {[%clk 0:00:55.9]} 26. Bh3 {[%clk 0:02:10.7]}
26... e5 {[%clk 0:00:55.4]} 27. Bxc8 {[%clk 0:02:00.8]} 27... Rxc8 {[%clk
0:00:56.3]} 28. Nxb7 {[%clk 0:02:01.3]} 28... d4 {[%clk 0:00:44.8]} 29. Nd6
{[%clk 0:02:00.7]} 29... Rd8 {[%clk 0:00:44.6]} 30. Nc4 {[%clk 0:01:59.1]} 30...
d3 {[%clk 0:00:41.2]} 31. Ra2 {[%clk 0:01:52.9]} 31... e4 {[%clk 0:00:40.4]} 32.
Kf1 {[%clk 0:01:48.1]} 32... Rb8 {[%clk 0:00:39.2]} 33. Rb2 {[%clk 0:01:42.3]}
33... Nd7 {[%clk 0:00:32]} 34. b4 {[%clk 0:01:38.8]} 34... Nf6 {[%clk
0:00:21.4]} 35. b5 {[%clk 0:01:37.8]} 35... Nd5 {[%clk 0:00:21.4]} 36. b6 {[%clk
0:01:35.6]} 36... Rb7 {[%clk 0:00:21.7]} 37. Ke1 {[%clk 0:01:29.7]} 37... Kf8
{[%clk 0:00:21.1]} 38. Nd6 {[%clk 0:01:25.5]} 38... Rxb6 {[%clk 0:00:20.8]} 39.
Rxb6 {[%clk 0:01:24.8]} 39... Nxb6 {[%clk 0:00:21.1]} 40. Nxe4 {[%clk
0:01:25.4]} 40... Nc4 {[%clk 0:00:20.3]} 41. Nc5 {[%clk 0:01:19.9]} 41... d2+
{[%clk 0:00:20.4]} 42. Ke2 {[%clk 0:01:19.9]} 42... Kf7 {[%clk 0:00:19.2]} 43.
Ne4 {[%clk 0:01:19.6]} 43... h6 {[%clk 0:00:18.5]} 44. Nxd2 {[%clk 0:01:19.6]}
44... Nd6 {[%clk 0:00:18.8]} 45. Kd3 {[%clk 0:01:17.6]} 45... Ke6 {[%clk
0:00:18]} 46. f3 {[%clk 0:01:16.2]} 46... g5 {[%clk 0:00:17.3]} 47. Ne4 {[%clk
0:01:16]} 47... Nf5 {[%clk 0:00:17.2]} 48. Nf2 {[%clk 0:01:14]} 48... Kf7 {[%clk
0:00:15.9]} 49. Ke4 {[%clk 0:01:12.8]} 49... Kg6 {[%clk 0:00:15.5]} 50. Ke5
{[%clk 0:01:11.7]} 50... Ne3 {[%clk 0:00:15.7]} 51. Ne4 {[%clk 0:01:03.2]} 51...
Nf1 {[%clk 0:00:13.8]} 52. h3 {[%clk 0:01:01.9]} 52... h5 {[%clk 0:00:11.4]} 53.
f4 {[%clk 0:01:01.8]} 53... gxf4 {[%clk 0:00:08.8]} 54. gxf4 {[%clk 0:01:02.7]}
54... Ne3 {[%clk 0:00:08.7]} 55. Nd6 {[%clk 0:01:00.2]} 55... h4 {[%clk
0:00:07.5]} 56. f5+ {[%clk 0:00:58.4]} 56... Kg7 {[%clk 0:00:06]} 57. f6+ {[%clk
0:00:58.2]} 57... Kf8 {[%clk 0:00:06.1]} 58. Ke6 {[%clk 0:00:55.2]} 58... Nd1
{[%clk 0:00:04.4]} 59. Ne4 {[%clk 0:00:52.9]} 59... Ne3 {[%clk 0:00:04.3]} 60.
Ng5 {[%clk 0:00:52.8]} 1-0

[Event "*** Titled Tuesday Blitz"]
[Site "Chess.com"]
[Date "2021.03.02"]
[Round "4"]
[White "Tekushka"]
[Black "Chamal_Gedgafov"]
[Result "1-0"]
[WhiteElo "2447"]
[BlackElo "2279"]
[TimeControl "180+1"]
[EndTime "10:40:02 PST"]
[Termination "Tekushka won by checkmate"]

1. e4 {[%clk 0:03:00.9]} 1... e6 {[%clk 0:02:59.7]} 2. d4 {[%clk 0:03:00.4]}
2... d5 {[%clk 0:02:59.8]} 3. Nc3 {[%clk 0:03:01.3]} 3... Bb4 {[%clk 0:02:58.7]}
4. e5 {[%clk 0:02:59.7]} 4... c5 {[%clk 0:02:58.6]} 5. a3 {[%clk 0:03:00.1]}
5... Bxc3+ {[%clk 0:02:59.3]} 6. bxc3 {[%clk 0:03:00.5]} 6... Ne7 {[%clk
0:02:59.8]} 7. Qg4 {[%clk 0:03:00]} 7... Qc7 {[%clk 0:02:59.1]} 8. Bd3 {[%clk
0:02:55.6]} 8... c4 {[%clk 0:02:56.4]} 9. Bf1 {[%clk 0:02:45.1]} 9... Nf5 {[%clk
0:02:56.3]} 10. a4 {[%clk 0:02:37]} 10... Bd7 {[%clk 0:02:52.4]} 11. Ne2 {[%clk
0:02:35.3]} 11... Nc6 {[%clk 0:02:41.7]} 12. Qf4 {[%clk 0:02:29.9]} 12... h5
{[%clk 0:02:39.1]} 13. Ng3 {[%clk 0:02:20.4]} 13... Nce7 {[%clk 0:02:35.2]} 14.
Be2 {[%clk 0:01:59.6]} 14... h4 {[%clk 0:02:33.2]} 15. Nf1 {[%clk 0:01:49.4]}
15... Qa5 {[%clk 0:02:28.8]} 16. Bd2 {[%clk 0:01:47.9]} 16... b5 {[%clk
0:02:24.9]} 17. g4 {[%clk 0:01:03.9]} 17... hxg3 {[%clk 0:02:20.7]} 18. fxg3
{[%clk 0:01:04.1]} 18... bxa4 {[%clk 0:02:11.4]} 19. g4 {[%clk 0:01:00.4]} 19...
Nh4 {[%clk 0:02:08.9]} 20. Qg3 {[%clk 0:00:54.6]} 20... a3 {[%clk 0:01:59.7]}
21. Bg5 {[%clk 0:00:49.7]} 21... Neg6 {[%clk 0:01:56.1]} 22. Kd2 {[%clk
0:00:45.8]} 22... a2 {[%clk 0:01:46.9]} 23. Ne3 {[%clk 0:00:45.1]} 23... Rb8
{[%clk 0:01:38.5]} 24. Rhf1 {[%clk 0:00:41.5]} 24... Rb2 {[%clk 0:01:34.9]} 25.
Qf2 {[%clk 0:00:41]} 25... Rf8 {[%clk 0:01:29.7]} 26. Bxh4 {[%clk 0:00:39.1]}
26... Qa4 {[%clk 0:01:24.1]} 27. Bg5 {[%clk 0:00:32.7]} 27... Rb3 {[%clk
0:00:56]} 28. cxb3 {[%clk 0:00:16.6]} 28... cxb3 {[%clk 0:00:54.9]} 29. Nd1
{[%clk 0:00:16.7]} 29... Qa3 {[%clk 0:00:50.4]} 30. Ke3 {[%clk 0:00:16.6]} 30...
b2 {[%clk 0:00:47.4]} 31. Nxb2 {[%clk 0:00:16.5]} 31... Qxb2 {[%clk 0:00:47.4]}
32. Qe1 {[%clk 0:00:16.7]} 32... Rh8 {[%clk 0:00:42.5]} 33. h4 {[%clk
0:00:15.7]} 33... Qc2 {[%clk 0:00:37.7]} 34. Bd3 {[%clk 0:00:13.2]} 34... Qh2
{[%clk 0:00:35.3]} 35. Qf2 {[%clk 0:00:11.9]} 35... Qh3+ {[%clk 0:00:34.4]} 36.
Qf3 {[%clk 0:00:12]} 36... Qxf3+ {[%clk 0:00:28.8]} 37. Rxf3 {[%clk 0:00:12.2]}
37... Nxh4 {[%clk 0:00:29.1]} 38. Bxh4 {[%clk 0:00:11.5]} 38... Rxh4 {[%clk
0:00:28.4]} 39. Rxa2 {[%clk 0:00:12.1]} 39... f6 {[%clk 0:00:26.7]} 40. exf6
{[%clk 0:00:11.7]} 40... gxf6 {[%clk 0:00:27]} 41. Rxf6 {[%clk 0:00:12]} 41...
Rh3+ {[%clk 0:00:26.7]} 42. Rf3 {[%clk 0:00:11.4]} 42... Rh4 {[%clk 0:00:25.5]}
43. Rxa7 {[%clk 0:00:11.3]} 43... Rxg4 {[%clk 0:00:25.5]} 44. Rh3 {[%clk
0:00:11]} 44... Rg8 {[%clk 0:00:21.5]} 45. Rh7 {[%clk 0:00:10.8]} 45... Bc6
{[%clk 0:00:21.5]} 46. Rhe7+ {[%clk 0:00:10.5]} 46... Kd8 {[%clk 0:00:20.2]} 47.
Rec7 {[%clk 0:00:10.5]} 47... Be8 {[%clk 0:00:15.7]} 48. Rg7 {[%clk 0:00:10.2]}
48... Rh8 {[%clk 0:00:14.5]} 49. Ra8# {[%clk 0:00:10.2]} 1-0